[Event "The Schackveckan 2023: Chessweek Elo-tournaments Group 2"]
[Site "Göteborgs schackcentrum, Vegagatan 20, Gothenburg, Sweden"]
[Date "2023.08.05"]
[Round "1.1"]
[White "Yang, Mandi"]
[Black "Lindholm, Marcus"]
[Result "1/2-1/2"]
[TimeControl "90 minutes for 40 moves + 30 minutes for the rest of the game + 30 seconds per move from move one."]
[WhiteFideId "1774778"]
[BlackFideId "1743473"]
[WhiteElo "1457"]
[BlackElo "1708"]

1. e4 {[%clk 01:30:45]} {[%emt 00:00:13]} c5 {[%clk 01:30:50]} {[%emt
00:00:11]} 2. Nf3 {[%clk 01:31:04]} {[%emt 00:00:11]} Nc6 {[%clk 01:31:11]}
{[%emt 00:00:10]} 3. Bb5 {[%clk 01:31:23]} {[%emt 00:00:10]} Nf6 {[%clk
01:31:27]} {[%emt 00:00:14]} 4. Nc3 {[%clk 01:31:03]} {[%emt 00:00:51]} g6
{[%clk 01:31:50]} {[%emt 00:00:07]} 5. O-O {[%clk 01:30:06]} {[%emt 00:01:27]}
Bg7 {[%clk 01:32:07]} {[%emt 00:00:12]} 6. Bxc6 {[%clk 01:30:20]} {[%emt
00:00:16]} dxc6 {[%clk 01:32:27]} {[%emt 00:00:10]} 7. h3 {[%clk 01:30:29]}
{[%emt 00:00:21]} Qc7 {[%clk 01:31:53]} {[%emt 00:01:04]} 8. d3 {[%clk
01:29:11]} {[%emt 00:01:49]} e5 {[%clk 01:31:25]} {[%emt 00:00:58]} 9. Be3
{[%clk 01:28:01]} {[%emt 00:02:18]} b6 {[%clk 01:32:04]} {[%emt 00:00:13]} 10.
Qd2 {[%clk 01:26:18]} {[%emt 00:02:13]} O-O {[%clk 01:31:22]} {[%emt 00:01:12]}
11. a4 {[%clk 01:26:02]} {[%emt 00:00:46]} a5 {[%clk 01:30:36]} {[%emt
00:01:15]} 12. Bh6 {[%clk 01:24:06]} {[%emt 00:02:26]} Ne8 {[%clk 01:25:57]}
{[%emt 00:05:10]} 13. Bxg7 {[%clk 01:17:24]} {[%emt 00:07:12]} Nxg7 {[%clk
01:25:59]} {[%emt 00:00:28]} 14. Rae1 {[%clk 01:16:45]} {[%emt 00:01:09]} Ne6
{[%clk 01:24:50]} {[%emt 00:01:38]} 15. Ne2 {[%clk 01:09:36]} {[%emt 00:07:39]}
f6 {[%clk 01:20:13]} {[%emt 00:05:07]} 16. Nh2 {[%clk 01:03:45]} {[%emt
00:06:22]} Ba6 {[%clk 01:09:59]} {[%emt 00:10:44]} 17. f4 {[%clk 00:51:45]}
{[%emt 00:12:29]} c4 {[%clk 01:10:18]} {[%emt 00:00:12]} 18. f5 {[%clk
00:48:03]} {[%emt 00:04:12]} cxd3 {[%clk 01:09:04]} {[%emt 00:01:43]} 19. cxd3
{[%clk 00:44:18]} {[%emt 00:04:15]} Nc5 {[%clk 01:07:20]} {[%emt 00:02:15]} 20.
fxg6 {[%clk 00:39:36]} {[%emt 00:05:12]} hxg6 {[%clk 01:05:00]} {[%emt
00:02:50]} 21. Ng4 {[%clk 00:35:10]} {[%emt 00:04:55]} Qg7 {[%clk 01:03:13]}
{[%emt 00:02:16]} 22. Rf3 {[%clk 00:31:26]} {[%emt 00:04:16]} Rad8 {[%clk
01:01:16]} {[%emt 00:02:27]} 23. Nc1 {[%clk 00:28:39]} {[%emt 00:03:17]} Nxa4
{[%clk 00:55:28]} {[%emt 00:06:18]} 24. Ref1 {[%clk 00:26:35]} {[%emt
00:02:33]} Rd6 {[%clk 00:51:45]} {[%emt 00:04:13]} 25. Qf2 {[%clk 00:24:21]}
{[%emt 00:02:45]} f5 {[%clk 00:42:32]} {[%emt 00:09:43]} 26. exf5 {[%clk
00:21:34]} {[%emt 00:03:17]} Rxf5 {[%clk 00:39:32]} {[%emt 00:03:30]} 27. Rxf5
{[%clk 00:20:37]} {[%emt 00:01:27]} gxf5 {[%clk 00:39:52]} {[%emt 00:00:10]} 28.
Qxf5 {[%clk 00:20:56]} {[%emt 00:00:11]} Nxb2 {[%clk 00:37:22]} {[%emt
00:03:00]} 29. Qh5 {[%clk 00:19:23]} {[%emt 00:02:02]} Rg6 {[%clk 00:29:31]}
{[%emt 00:08:21]} 30. Qh4 {[%clk 00:16:28]} {[%emt 00:03:25]} a4 {[%clk
00:16:13]} {[%emt 00:13:48]} 31. Qd8+ {[%clk 00:15:30]} {[%emt 00:01:28]} Kh7
{[%clk 00:16:18]} {[%emt 00:00:25]} 32. Qh4+ {[%clk 00:15:54]} {[%emt
00:00:07]} Kg8 {[%clk 00:16:28]} {[%emt 00:00:19]} 33. Qd8+ {[%clk 00:16:11]}
{[%emt 00:00:13]} Kh7 {[%emt 00:00:13]} 1/2-1/2

[Event "The Schackveckan 2023: Chessweek Elo-tournaments Group 2"]
[Site "Göteborgs schackcentrum, Vegagatan 20, Gothenburg, Sweden"]
[Date "2023.08.05"]
[Round "1.2"]
[White "Block, Benjamin"]
[Black "Madevan Vaishnavi, Yaashvan"]
[Result "1-0"]
[TimeControl "90 minutes for 40 moves + 30 minutes for the rest of the game + 30 seconds per move from move one."]
[WhiteFideId "1765493"]
[BlackFideId "1772180"]
[WhiteElo "1679"]
[BlackElo "1425"]

1. e4 {[%clk 01:30:56]} {[%emt 00:00:03]} d6 {[%clk 01:30:53]} {[%emt
00:00:09]} 2. d4 {[%clk 01:31:10]} {[%emt 00:00:15]} Nf6 {[%clk 01:31:15]}
{[%emt 00:00:08]} 3. Nc3 {[%clk 01:31:18]} {[%emt 00:00:22]} g6 {[%clk
01:31:23]} {[%emt 00:00:22]} 4. f3 {[%clk 01:30:36]} {[%emt 00:01:10]} Bg7
{[%clk 01:31:12]} {[%emt 00:00:42]} 5. Be3 {[%clk 01:30:43]} {[%emt 00:00:23]}
c6 {[%clk 01:31:02]} {[%emt 00:00:41]} 6. a4 {[%clk 01:30:01]} {[%emt
00:01:11]} Qc7 {[%clk 01:30:34]} {[%emt 00:00:59]} 7. Qd2 {[%clk 01:29:27]}
{[%emt 00:01:04]} e5 {[%clk 01:30:06]} {[%emt 00:00:58]} 8. Bc4 {[%clk
01:23:36]} {[%emt 00:06:20]} Nbd7 {[%clk 01:28:34]} {[%emt 00:02:03]} 9. Nge2
{[%clk 01:20:23]} {[%emt 00:03:43]} Nb6 {[%clk 01:27:28]} {[%emt 00:01:36]} 10.
Bb3 {[%clk 01:20:15]} {[%emt 00:00:37]} d5 {[%clk 01:24:29]} {[%emt 00:03:31]}
11. a5 {[%clk 01:13:40]} {[%emt 00:07:05]} Nc4 {[%clk 01:19:56]} {[%emt
00:05:02]} 12. Bxc4 {[%clk 01:13:47]} {[%emt 00:00:23]} dxc4 {[%clk 01:20:18]}
{[%emt 00:00:08]} 13. dxe5 {[%clk 01:08:25]} {[%emt 00:05:52]} Qxe5 {[%clk
01:20:12]} {[%emt 00:00:36]} 14. Qd4 {[%clk 01:08:23]} {[%emt 00:00:31]} Qxd4
{[%clk 01:19:35]} {[%emt 00:01:08]} 15. Bxd4 {[%clk 01:07:09]} {[%emt
00:01:43]} Nh5 {[%clk 01:15:55]} {[%emt 00:04:11]} 16. Bc5 {[%clk 01:02:22]}
{[%emt 00:05:15]} Bf8 {[%clk 01:14:16]} {[%emt 00:02:10]} 17. Bxf8 {[%clk
01:02:04]} {[%emt 00:00:49]} Rxf8 {[%clk 01:12:49]} {[%emt 00:01:57]} 18. O-O
{[%clk 01:01:17]} {[%emt 00:01:16]} Be6 {[%clk 01:08:13]} {[%emt 00:05:06]} 19.
Na4 {[%clk 00:54:29]} {[%emt 00:07:18]} Ke7 {[%clk 01:02:44]} {[%emt 00:06:00]}
20. Rfd1 {[%clk 00:52:43]} {[%emt 00:02:16]} Rfd8 {[%clk 01:02:42]} {[%emt
00:00:33]} 21. Nd4 {[%clk 00:51:20]} {[%emt 00:01:51]} Nf4 {[%clk 01:02:02]}
{[%emt 00:01:11]} 22. Kf2 {[%clk 00:50:50]} {[%emt 00:00:59]} Rd6 {[%clk
00:58:15]} {[%emt 00:04:17]} 23. Ne2 {[%clk 00:45:28]} {[%emt 00:05:53]} Nxe2
{[%clk 00:53:51]} {[%emt 00:04:54]} 24. Kxe2 {[%clk 00:45:50]} {[%emt
00:00:08]} Rad8 {[%clk 00:54:00]} {[%emt 00:00:21]} 25. Nc3 {[%clk 00:36:54]}
{[%emt 00:09:26]} b5 {[%clk 00:51:20]} {[%emt 00:03:10]} 26. axb6 {[%clk
00:36:49]} {[%emt 00:00:35]} axb6 {[%clk 00:51:41]} {[%emt 00:00:09]} 27. Rxd6
{[%clk 00:36:08]} {[%emt 00:01:10]} Rxd6 {[%clk 00:52:00]} {[%emt 00:00:12]} 28.
Rd1 {[%clk 00:36:23]} {[%emt 00:00:14]} b5 {[%clk 00:51:41]} {[%emt 00:00:49]}
29. Rxd6 {[%clk 00:33:50]} {[%emt 00:03:04]} Kxd6 {[%clk 00:51:57]} {[%emt
00:00:14]} 30. Nd1 {[%clk 00:30:17]} {[%emt 00:04:03]} f5 {[%clk 00:51:00]}
{[%emt 00:01:27]} 31. Ke3 {[%clk 00:29:59]} {[%emt 00:00:48]} fxe4 {[%clk
00:51:07]} {[%emt 00:00:23]} 32. fxe4 {[%clk 00:30:14]} {[%emt 00:00:15]} Ke5
{[%clk 00:51:04]} {[%emt 00:00:33]} 33. c3 {[%clk 00:28:44]} {[%emt 00:01:59]}
Bg4 {[%clk 00:48:30]} {[%emt 00:03:05]} 34. Nf2 {[%clk 00:28:54]} {[%emt
00:00:20]} h5 {[%clk 00:48:51]} {[%emt 00:00:09]} 35. Nxg4+ {[%clk 00:25:14]}
{[%emt 00:04:09]} hxg4 {[%clk 00:49:14]} {[%emt 00:00:08]} 36. h3 {[%clk
00:25:15]} {[%emt 00:00:29]} gxh3 {[%clk 00:47:06]} {[%emt 00:02:38]} 37. gxh3
{[%clk 00:25:34]} {[%emt 00:00:11]} g5 {[%clk 00:47:24]} {[%emt 00:00:12]} 38.
Kf3 {[%clk 00:25:59]} {[%emt 00:00:04]} c5 {[%clk 00:47:47]} {[%emt 00:00:08]}
39. Kg4 {[%clk 00:25:57]} {[%emt 00:00:31]} Kxe4 {[%clk 00:48:01]} {[%emt
00:00:17]} 40. Kxg5 {[%clk 00:26:13]} {[%emt 00:00:13]} Kd3 {[%clk 00:47:46]}
{[%emt 00:00:46]} 41. h4 {[%clk 00:26:33]} {[%emt 00:00:10]} Kc2 {[%clk
00:48:08]} {[%emt 00:00:08]} 42. h5 {[%clk 00:26:53]} {[%emt 00:00:09]} Kxb2
{[%clk 00:48:33]} {[%emt 00:00:06]} 43. h6 {[%clk 00:27:13]} {[%emt 00:00:10]}
Kxc3 {[%clk 00:48:58]} {[%emt 00:00:05]} 44. h7 {[%clk 00:27:31]} {[%emt
00:00:12]} Kb3 {[%clk 00:49:06]} {[%emt 00:00:22]} 45. h8=Q {[%clk 00:27:34]}
{[%emt 00:00:26]} c3 {[%clk 00:49:28]} {[%emt 00:00:09]} 46. Kf4 {[%clk
00:26:59]} {[%emt 00:01:02]} b4 {[%clk 00:49:17]} {[%emt 00:00:44]} 47. Ke3
{[%clk 00:26:50]} {[%emt 00:00:39]} Ka2 {[%clk 00:47:39]} {[%emt 00:02:08]} 48.
Kd3 {[%clk 00:24:50]} {[%emt 00:02:29]} c4+ {[%clk 00:46:20]} {[%emt 00:01:50]}
49. Kc2 {[%clk 00:24:56]} {[%emt 00:00:22]} b3 {[%clk 00:45:32]} {[%emt
00:01:20]} 50. Kxc3 {[%clk 00:25:14]} {[%emt 00:00:11]} b2 {[%clk 00:45:16]}
{[%emt 00:00:47]} 51. Qh2 {[%clk 00:24:01]} {[%emt 00:01:42]} 1-0

[Event "The Schackveckan 2023: Chessweek Elo-tournaments Group 2"]
[Site "Göteborgs schackcentrum, Vegagatan 20, Gothenburg, Sweden"]
[Date "2023.08.05"]
[Round "1.3"]
[White "Andreasson, Emanuel"]
[Black "Gallardo, Guillermo"]
[Result "1-0"]
[TimeControl "90 minutes for 40 moves + 30 minutes for the rest of the game + 30 seconds per move from move one."]
[WhiteFideId "1759620"]
[BlackFideId "1773488"]
[WhiteElo "1367"]
[BlackElo "1644"]

1. e4 {[%clk 01:30:57]} {[%emt 00:00:02]} c5 {[%clk 01:30:44]} {[%emt
00:00:16]} 2. d4 {[%clk 01:31:22]} {[%emt 00:00:05]} cxd4 {[%clk 01:30:40]}
{[%emt 00:00:35]} 3. c4 {[%emt 00:01:16]} dxc3 {[%clk 01:29:58]} 4. Nxc3 {[%clk
01:32:06]} {[%emt 00:00:06]} g6 {[%clk 01:30:08]} {[%emt 00:00:26]} 5. Nf3
{[%clk 01:32:03]} {[%emt 00:00:31]} Bg7 {[%clk 01:29:48]} {[%emt 00:00:51]} 6.
Bc4 {[%clk 01:31:35]} {[%emt 00:00:59]} e6 {[%clk 01:28:58]} {[%emt 00:01:19]}
7. Nb5 {[%clk 01:27:10]} {[%emt 00:04:55]} Nc6 {[%clk 01:18:50]} {[%emt
00:10:37]} 8. Qd6 {[%clk 01:18:37]} {[%emt 00:09:04]} Nge7 {[%clk 00:52:36]}
{[%emt 00:26:44]} 9. Nc7+ {[%clk 01:16:49]} {[%emt 00:02:18]} Kf8 {[%clk
00:51:29]} {[%emt 00:01:37]} 10. Nxa8 {[%clk 01:15:32]} {[%emt 00:01:48]} Qa5+
{[%clk 00:47:38]} {[%emt 00:04:21]} 11. Bd2 {[%clk 01:13:42]} {[%emt 00:02:19]}
Qh5 {[%clk 00:40:58]} {[%emt 00:07:09]} 12. h3 {[%clk 01:06:57]} {[%emt
00:07:15]} Ne5 {[%clk 00:35:09]} {[%emt 00:06:18]} 13. Be2 {[%clk 00:58:35]}
{[%emt 00:08:53]} Nxf3+ {[%clk 00:30:35]} {[%emt 00:05:06]} 14. Bxf3 {[%clk
00:57:35]} {[%emt 00:01:29]} Qb5 {[%clk 00:26:52]} {[%emt 00:04:12]} 15. Rc1
{[%clk 00:55:41]} {[%emt 00:02:25]} Be5 {[%clk 00:23:23]} {[%emt 00:03:59]} 16.
Bh6+ {[%emt 00:09:07]} 1-0

[Event "The Schackveckan 2023: Chessweek Elo-tournaments Group 2"]
[Site "Göteborgs schackcentrum, Vegagatan 20, Gothenburg, Sweden"]
[Date "2023.08.05"]
[Round "1.4"]
[White "Green, David"]
[Black "Dahlin, Emil"]
[Result "1-0"]
[TimeControl "90 minutes for 40 moves + 30 minutes for the rest of the game + 30 seconds per move from move one."]
[WhiteFideId "1769332"]
[BlackFideId "1771035"]
[WhiteElo "1634"]
[BlackElo "1284"]

1. e4 {[%clk 01:30:57]} {[%emt 00:00:03]} e5 {[%clk 01:30:53]} {[%emt
00:00:07]} 2. Nc3 {[%clk 01:31:25]} {[%emt 00:00:02]} Nf6 {[%clk 01:31:06]}
{[%emt 00:00:17]} 3. f4 {[%clk 01:31:51]} {[%emt 00:00:03]} d5 {[%clk
01:31:12]} {[%emt 00:00:24]} 4. fxe5 {[%clk 01:32:17]} {[%emt 00:00:05]} Nxe4
{[%clk 01:31:25]} {[%emt 00:00:17]} 5. Qf3 {[%clk 01:31:28]} {[%emt 00:01:18]}
Nxc3 {[%clk 01:30:53]} {[%emt 00:01:02]} 6. bxc3 {[%clk 01:30:24]} {[%emt
00:01:34]} c5 {[%clk 01:29:37]} {[%emt 00:01:47]} 7. Bb5+ {[%clk 01:28:01]}
{[%emt 00:02:52]} Nc6 {[%clk 01:28:39]} {[%emt 00:01:28]} 8. Ne2 {[%clk
01:26:14]} {[%emt 00:02:17]} Be6 {[%clk 01:25:41]} {[%emt 00:03:28]} 9. d4
{[%clk 01:22:33]} {[%emt 00:04:11]} c4 {[%clk 01:21:42]} {[%emt 00:04:30]} 10.
O-O {[%clk 01:20:06]} {[%emt 00:02:57]} Be7 {[%clk 01:19:15]} {[%emt 00:02:56]}
11. Qg3 {[%clk 01:13:47]} {[%emt 00:06:47]} Bf8 {[%clk 01:13:32]} {[%emt
00:06:15]} 12. Nf4 {[%clk 00:58:43]} {[%emt 00:15:34]} Bf5 {[%clk 01:08:12]}
{[%emt 00:05:50]} 13. Nxd5 {[%clk 00:51:01]} {[%emt 00:08:12]} Bxc2 {[%clk
01:06:14]} {[%emt 00:02:29]} 14. Bxc4 {[%clk 00:47:11]} {[%emt 00:04:20]} b5
{[%clk 01:05:00]} {[%emt 00:01:44]} 15. Qf4 {[%clk 00:38:42]} {[%emt 00:08:56]}
Bg6 {[%clk 01:03:19]} {[%emt 00:02:14]} 16. Bb3 {[%clk 00:34:54]} {[%emt
00:04:17]} Na5 {[%clk 00:57:29]} {[%emt 00:06:21]} 17. e6 {[%clk 00:31:39]}
{[%emt 00:03:44]} fxe6 {[%clk 00:53:57]} {[%emt 00:04:02]} 18. Nc7+ {[%clk
00:30:28]} {[%emt 00:01:41]} Ke7 {[%clk 00:51:51]} {[%emt 00:02:36]} 19. Ba3+
{[%clk 00:28:04]} {[%emt 00:02:54]} Kd7 {[%clk 00:50:43]} {[%emt 00:01:38]} 20.
Bxe6+ {[%clk 00:27:53]} {[%emt 00:00:42]} Kc6 {[%clk 00:50:24]} {[%emt
00:00:49]} 21. Bd5+ {[%clk 00:26:59]} {[%emt 00:01:22]} Kd7 {[%clk 00:49:55]}
{[%emt 00:01:00]} 22. Qg4+ {[%clk 00:26:20]} {[%emt 00:01:07]} 1-0

[Event "The Schackveckan 2023: Chessweek Elo-tournaments Group 2"]
[Site "Göteborgs schackcentrum, Vegagatan 20, Gothenburg, Sweden"]
[Date "2023.08.06"]
[Round "2.1"]
[White "Andreasson, Emanuel"]
[Black "Block, Benjamin"]
[Result "0-1"]
[TimeControl "90 minutes for 40 moves + 30 minutes for the rest of the game + 30 seconds per move from move one."]
[WhiteFideId "1759620"]
[BlackFideId "1765493"]
[WhiteElo "1367"]
[BlackElo "1679"]

1. e4 {[%clk 01:30:56]} {[%emt 00:00:03]} e5 {[%clk 01:30:49]} {[%emt
00:00:11]} 2. Nc3 {[%clk 01:31:19]} {[%emt 00:00:07]} Nf6 {[%clk 01:31:06]}
{[%emt 00:00:13]} 3. f4 {[%clk 01:31:44]} {[%emt 00:00:05]} d5 {[%clk
01:27:21]} {[%emt 00:04:14]} 4. fxe5 {[%clk 01:32:04]} {[%emt 00:00:11]} Nxe4
{[%clk 01:27:21]} {[%emt 00:00:30]} 5. Nf3 {[%clk 01:31:41]} {[%emt 00:00:54]}
Bc5 {[%clk 01:27:10]} {[%emt 00:00:40]} 6. d4 {[%clk 01:31:19]} {[%emt
00:00:52]} Bb4 {[%clk 01:27:28]} {[%emt 00:00:12]} 7. Bd2 {[%clk 01:29:21]}
{[%emt 00:02:28]} c5 {[%clk 01:27:42]} {[%emt 00:00:17]} 8. Bb5+ {[%clk
01:26:32]} {[%emt 00:03:18]} Nc6 {[%clk 01:27:49]} {[%emt 00:00:24]} 9. O-O
{[%clk 01:23:51]} {[%emt 00:03:10]} Bg4 {[%clk 01:26:46]} {[%emt 00:01:33]} 10.
Qe1 {[%clk 01:16:34]} {[%emt 00:07:47]} Bxf3 {[%clk 01:21:41]} {[%emt
00:05:36]} 11. Rxf3 {[%clk 01:13:40]} {[%emt 00:03:23]} O-O {[%clk 01:19:05]}
{[%emt 00:03:06]} 12. Bxc6 {[%clk 01:11:32]} {[%emt 00:02:39]} bxc6 {[%clk
01:18:55]} {[%emt 00:00:40]} 13. Nxe4 {[%clk 01:01:07]} {[%emt 00:10:54]} dxe4
{[%clk 01:19:11]} {[%emt 00:00:14]} 14. Rg3 {[%clk 00:59:28]} {[%emt 00:02:10]}
Qxd4+ {[%clk 01:19:09]} {[%emt 00:00:31]} 15. Be3 {[%clk 00:56:01]} {[%emt
00:03:57]} Bxe1 {[%clk 01:19:17]} {[%emt 00:00:21]} 16. Bxd4 {[%clk 00:55:58]}
{[%emt 00:00:34]} Bxg3 {[%clk 01:19:31]} {[%emt 00:00:16]} 17. Bxc5 {[%clk
00:55:59]} {[%emt 00:00:29]} Bxe5 {[%clk 01:19:42]} {[%emt 00:00:19]} 18. Bxf8
{[%clk 00:56:21]} {[%emt 00:00:08]} Kxf8 {[%clk 01:19:44]} {[%emt 00:00:28]}
0-1

[Event "The Schackveckan 2023: Chessweek Elo-tournaments Group 2"]
[Site "Göteborgs schackcentrum, Vegagatan 20, Gothenburg, Sweden"]
[Date "2023.08.06"]
[Round "2.4"]
[White "Gallardo, Guillermo"]
[Black "Madevan Vaishnavi, Yaashvan"]
[Result "1/2-1/2"]
[TimeControl "90 minutes for 40 moves + 30 minutes for the rest of the game + 30 seconds per move from move one."]
[WhiteFideId "1773488"]
[BlackFideId "1772180"]
[WhiteElo "1644"]
[BlackElo "1425"]

1. c4 {[%clk 01:28:38]} {[%emt 00:02:21]} e5 {[%clk 01:30:50]} {[%emt
00:00:11]} 2. Nc3 {[%clk 01:28:57]} {[%emt 00:00:10]} Nf6 {[%clk 01:29:42]}
{[%emt 00:01:39]} 3. e4 {[%clk 01:27:58]} {[%emt 00:01:28]} c6 {[%clk
01:28:34]} {[%emt 00:01:39]} 4. Nf3 {[%clk 01:26:15]} {[%emt 00:02:13]} Bb4
{[%clk 01:25:16]} {[%emt 00:03:48]} 5. d3 {[%clk 01:25:30]} {[%emt 00:01:13]}
d6 {[%clk 01:19:01]} {[%emt 00:06:46]} 6. Be2 {[%clk 01:21:34]} {[%emt
00:04:25]} h6 {[%clk 01:17:28]} {[%emt 00:02:04]} 7. h3 {[%clk 01:19:41]}
{[%emt 00:02:22]} Be6 {[%clk 01:17:05]} {[%emt 00:00:55]} 8. Qc2 {[%clk
01:17:07]} {[%emt 00:03:03]} Nbd7 {[%clk 01:16:23]} {[%emt 00:01:12]} 9. a3
{[%clk 01:16:33]} {[%emt 00:01:04]} Ba5 {[%clk 01:15:10]} {[%emt 00:01:44]} 10.
b4 {[%clk 01:16:30]} {[%emt 00:00:32]} Bc7 {[%clk 01:15:21]} {[%emt 00:00:19]}
11. O-O {[%clk 01:10:23]} {[%emt 00:06:36]} O-O {[%clk 01:14:44]} {[%emt
00:01:08]} 12. Be3 {[%clk 01:07:29]} {[%emt 00:03:23]} d5 {[%clk 01:14:47]}
{[%emt 00:00:28]} 13. cxd5 {[%clk 01:04:49]} {[%emt 00:03:10]} cxd5 {[%clk
01:13:36]} {[%emt 00:01:41]} 14. d4 {[%clk 00:48:39]} {[%emt 00:16:40]} dxe4
{[%clk 01:11:32]} {[%emt 00:02:35]} 15. Nxe4 {[%clk 00:47:55]} {[%emt
00:01:12]} Rc8 {[%clk 01:10:24]} {[%emt 00:01:39]} 16. Nc5 {[%clk 00:45:31]}
{[%emt 00:02:55]} Bd6 {[%clk 01:06:16]} {[%emt 00:04:38]} 17. Qb2 {[%clk
00:44:10]} {[%emt 00:01:50]} Bxc5 {[%clk 01:04:46]} {[%emt 00:02:00]} 18. dxc5
{[%clk 00:44:08]} {[%emt 00:00:33]} Re8 {[%clk 01:02:57]} {[%emt 00:02:18]} 19.
Rfd1 {[%clk 00:43:05]} {[%emt 00:01:32]} Bd5 {[%clk 01:01:12]} {[%emt
00:02:15]} 20. Rac1 {[%clk 00:40:55]} {[%emt 00:02:40]} Qe7 {[%clk 00:55:59]}
{[%emt 00:05:44]} 21. Nd2 {[%clk 00:39:51]} {[%emt 00:01:34]} b6 {[%clk
00:55:06]} {[%emt 00:01:23]} 22. Bb5 {[%clk 00:34:36]} {[%emt 00:05:45]} bxc5
{[%clk 00:49:27]} {[%emt 00:06:09]} 23. Bxc5 {[%clk 00:27:19]} {[%emt
00:07:47]} Nxc5 {[%clk 00:49:00]} {[%emt 00:00:57]} 24. Rxc5 {[%clk 00:26:49]}
{[%emt 00:00:59]} Rxc5 {[%clk 00:48:45]} {[%emt 00:00:46]} 25. bxc5 {[%clk
00:22:23]} {[%emt 00:04:57]} Rb8 {[%clk 00:48:45]} {[%emt 00:00:29]} 26. Rc1
{[%clk 00:15:09]} {[%emt 00:07:42]} Bc6 {[%clk 00:46:13]} {[%emt 00:03:05]} 27.
a4 {[%clk 00:15:01]} {[%emt 00:00:36]} a6 {[%clk 00:46:38]} {[%emt 00:00:06]}
28. Nc4 {[%clk 00:09:59]} {[%emt 00:05:30]} axb5 {[%clk 00:46:44]} {[%emt
00:00:26]} 29. Nd6 {[%clk 00:09:42]} {[%emt 00:00:46]} Ne8 {[%clk 00:44:19]}
{[%emt 00:02:56]} 30. axb5 {[%clk 00:08:29]} {[%emt 00:01:41]} Nxd6 {[%clk
00:44:14]} {[%emt 00:00:38]} 31. cxd6 {[%clk 00:08:50]} {[%emt 00:00:08]} Qxd6
{[%clk 00:44:12]} {[%emt 00:00:32]} 32. bxc6 {[%clk 00:06:02]} {[%emt
00:03:18]} Rxb2 {[%clk 00:44:35]} {[%emt 00:00:08]} 33. c7 {[%clk 00:06:15]}
{[%emt 00:00:17]} Qd7 {[%clk 00:44:55]} {[%emt 00:00:09]} 34. c8=Q+ {[%emt
00:00:33]} Qxc8 {[%clk 00:45:15]} {[%emt 00:00:07]} 35. Rxc8+ {[%clk 00:06:33]}
{[%emt 00:00:12]} Kh7 {[%clk 00:45:43]} {[%emt 00:00:02]} 36. g3 {[%clk
00:05:24]} {[%emt 00:01:37]} g5 {[%clk 00:45:23]} {[%emt 00:00:52]} 37. Rc5
{[%clk 00:05:36]} {[%emt 00:00:18]} f6 {[%clk 00:45:40]} {[%emt 00:00:13]} 38.
Kg2 {[%clk 00:04:35]} {[%emt 00:01:30]} h5 {[%clk 00:45:30]} {[%emt 00:00:42]}
39. Rc6 {[%clk 00:04:36]} {[%emt 00:00:28]} Kg6 {[%clk 00:45:52]} {[%emt
00:00:08]} 40. g4 {[%clk 00:02:33]} {[%emt 00:02:27]} h4 {[%clk 00:44:32]}
{[%emt 00:01:56]} 41. Ra6 {[%clk 00:02:28]} {[%emt 00:00:35]} Rb7 {[%clk
00:43:03]} {[%emt 00:01:59]} 42. Re6 {[%clk 00:02:41]} {[%emt 00:00:16]} Kf7
{[%clk 00:43:03]} {[%emt 00:00:31]} 43. Ra6 {[%emt 00:00:10]} Re7 {[%clk
00:43:25]} {[%emt 00:00:06]} 44. Rb6 {[%clk 00:02:28]} {[%emt 00:01:05]} e4
{[%clk 00:42:12]} {[%emt 00:01:44]} 45. Rb3 {[%clk 00:00:35]} {[%emt 00:02:23]}
Re6 {[%clk 00:41:34]} {[%emt 00:01:08]} 46. Rb7+ {[%clk 00:00:49]} {[%emt
00:00:15]} Kg6 {[%clk 00:41:37]} {[%emt 00:00:27]} 47. Rb3 {[%clk 00:01:13]}
{[%emt 00:00:06]} f5 {[%clk 00:40:57]} {[%emt 00:01:10]} 48. gxf5+ {[%clk
00:28:44]} {[%emt 00:02:58]} Kxf5 {[%clk 01:11:17]} {[%emt 00:00:10]} 49. Rb5+
{[%clk 00:28:01]} {[%emt 00:01:14]} Re5 {[%clk 01:07:13]} {[%emt 00:04:35]} 50.
Rb8 {[%clk 00:28:23]} {[%emt 00:00:07]} Kf4 {[%clk 01:06:12]} {[%emt 00:01:32]}
51. Rf8+ {[%clk 00:28:04]} {[%emt 00:00:48]} Rf5 {[%clk 01:06:33]} {[%emt
00:00:09]} 52. Re8 {[%clk 00:27:46]} {[%emt 00:00:48]} g4 {[%clk 01:05:47]}
{[%emt 00:01:16]} 53. hxg4 {[%clk 00:22:42]} {[%emt 00:05:32]} Kxg4 {[%clk
01:06:04]} {[%emt 00:00:15]} 54. Rxe4+ {[%clk 00:22:48]} {[%emt 00:00:24]} Rf4
{[%clk 01:05:35]} {[%emt 00:00:59]} 1/2-1/2